[Event "World Junior U20 Girls 2018"]
[Site "Gebze"]
[Date "2018.09.13"]
[Round "9"]
[White "Nemcova, Karin"]
[Black "Duran, Esma Doga"]
[Result "1/2-1/2"]
[ECO "B46"]
[WhiteElo "1990"]
[BlackElo "1825"]
[Annotator "NA"]
[PlyCount "106"]
[EventDate "2018.09.05"]
[EventType "swiss"]
[EventCountry "TUR"]
[SourceTitle "playchess.com"]
[Source "ChessBase"]
[SourceQuality "1"]
[TimeControl "40/5400+30:1800+30"]

1. e4 {[%emt 0:00:30]} c5 {[%emt 0:00:30]} 2. Nf3 {[%emt 0:00:30]} e6 {[%emt 0:00:30]} 3. d4 {[%emt 0:00:00]} cxd4 {[%emt 0:00:00]} 4. Nxd4 {[%emt 0:00:00]} Nc6 {[%emt 0:00:00]} 5. Nc3 {[%emt 0:00:00]} a6 {[%emt 0:00:00] LiveBook: 5137 Games} 6. Bf4 {[%emt 0:00:00]} d6 {[%emt 0:04:00]} 7. Bg3 {[%emt 0:00:30]} e5 {[%emt 0:07:30] B46: Sicilian: Taimanov: 5 Nc3 a6} 8. Nxc6 {[%emt 0:01:30]} bxc6 {[%emt 0:00:30]} 9. Be2 {[%emt 0:00:30]} (9. Bc4 Nf6 10. Qd3 Be7 11. O-O-O O-O 12. Bh4 Ne8 13. Bxe7 Qxe7 14. Qe3 Be6 15. Bb3 {0-1 (28) Grigoriants,S (2574)-Alekseev,E (2692) Yerevan 2014}) 9... Be7 $146 {[%emt 0:00:30]} ({Predecessor:} 9... Nf6 10. Qd2 Be7 11. Rd1 Rb8 12. b3 O-O 13. O-O Qc7 14. Kh1 Rb4 15. f4 {½-½ (30) Narayanan,S (2477)-Mishra,N (2328) Noida 2016}) 10. f4 {[%emt 0:09:30]} exf4 {[%emt 0:24:30]} 11. Bxf4 {[%emt 0:01:30]} Be6 {[%emt 0:00:00]} 12. Qd2 {[%emt 0:05:30]} Nf6 {[%emt 0:07:00]} 13. O-O {[%emt 0:19:30]} O-O {[%emt 0:00:30]} 14. b3 {[%emt 0:02:30]} Qb6+ {[%emt 0:01:30]} 15. Kh1 {[%emt 0:06:30]} d5 {[%emt 0:04:30]} 16. exd5 {[%emt 0:08:30]} cxd5 {[%emt 0:00:30]} 17. Bd3 {[%emt 0:00:00]} Rac8 {[%emt 0:09:30]} 18. Na4 {[%emt 0:01:00]} Qb7 {[%emt 0:04:30]} 19. Qe2 {[%emt 0:03:30]} Bg4 {[%emt 0:03:30]} 20. Bxa6 {[%emt 0:07:30]} Bxe2 {[%emt 0:00:00]} 21. Bxb7 {[%emt 0:00:00]} Bxf1 {[%emt 0:00:00]} 22. Bxc8 {[%emt 0:00:00]} Rxc8 {[%emt 0:00:30]} 23. Rxf1 {[%emt 0:00:30]} Rxc2 {[%emt 0:00:00]} 24. Rc1 {[%emt 0:04:30]} Rxa2 {[%emt 0:04:00]} 25. Rc8+ {[%emt 0:01:30]} Bf8 {[%emt 0:00:30]} 26. h3 {[%emt 0:00:30]} Re2 {[%emt 0:07:30]} (26... Ne4 $17 27. Nb6 g5) 27. Nc3 {[%emt 0:03:30]} Rc2 {[%emt 0:07:10]} 28. Bd6 {[%emt 0:00:30]} Nd7 {[%emt 0:00:07]} 29. Bxf8 $11 {[%emt 0:00:30]} Nxf8 {[%emt 0:00:12]} 30. Nxd5 {[%emt 0:00:30]} Rxc8 {[%emt 0:02:45]} 31. Ne7+ {[%emt 0:00:30]} Kh8 {[%emt 0:00:30]} 32. Nxc8 {[%emt 0:00:00]} Nd7 {[%emt 0:00:00]} 33. Kg1 {[%emt 0:00:00]} f5 {[%emt 0:01:18]} 34. Kf1 {[%emt 0:00:30]} g6 {[%emt 0:00:59]} 35. Ke2 {[%emt 0:00:30]} Kg7 {[%emt 0:00:12]} 36. b4 {[%emt 0:00:30]} Kf6 {[%emt 0:00:10]} 37. Ke3 {[%emt 0:05:30]} Ke5 {[%emt 0:00:17]} 38. b5 {[%emt 0:07:25]} g5 {[%emt 0:01:35]} 39. Ne7 {[%emt 0:01:38]} h5 {[%emt 0:00:47]} 40. g3 {[%emt 0:00:00]} Nb6 {[%emt 0:00:00]} 41. h4 {[%emt 0:06:57]} gxh4 {[%emt 0:09:28]} 42. gxh4 {[%emt 0:01:30]} f4+ {[%emt 0:01:30]} 43. Kf3 {[%emt 0:00:30]} Kf6 {[%emt 0:00:00]} 44. Nc6 {[%emt 0:00:00]} Kf5 {[%emt 0:00:00]} 45. Nd4+ {[%emt 0:01:00]} Ke5 {[%emt 0:00:30]} 46. Ne2 {[%emt 0:00:30]} Nd5 {[%emt 0:00:00]} 47. Nc1 {[%emt 0:04:30]} Kd4 {[%emt 0:01:00]} 48. b6 {[%emt 0:03:30]} Nxb6 {[%emt 0:00:30]} 49. Kxf4 {[%emt 0:00:00]} Nd5+ {[%emt 0:00:30]} 50. Kg5 {[%emt 0:00:00]} Ne3 {[%emt 0:00:30]} 51. Ne2+ {[%emt 0:00:00]} Ke5 {[%emt 0:00:30]} 52. Nf4 {[%emt 0:00:00]} Nf5 {[%emt 0:01:30]} 53. Nxh5 {[%emt 0:00:30]} Nxh4 {[%emt 0:00:30]} 1/2-1/2

[Event "World Junior U20 Girls 2018"]
[Site "Gebze"]
[Date "2018.09.13"]
[Round "9"]
[White "Aubert, Laurane"]
[Black "Gur, Tuba"]
[Result "1-0"]
[ECO "B43"]
[WhiteElo "1970"]
[BlackElo "1724"]
[Annotator "NA"]
[PlyCount "87"]
[EventDate "2018.09.05"]
[EventType "swiss"]
[EventCountry "TUR"]
[SourceTitle "playchess.com"]
[Source "ChessBase"]
[SourceQuality "1"]
[TimeControl "40/5400+30:1800+30"]

1. e4 {[%emt 0:00:30]} c5 {[%emt 0:00:30]} 2. Nc3 {[%emt 0:00:30]} e6 {[%emt 0:00:00]} 3. Nge2 {[%emt 0:00:00]} a6 {[%emt 0:00:00]} 4. d4 {[%emt 0:01:00]} cxd4 {[%emt 0:00:30]} 5. Nxd4 {[%emt 0:00:00]} b5 {[%emt 0:00:00]} 6. Bd3 {[%emt 0:07:00]} Bb7 {[%emt 0:00:00]} 7. O-O {[%emt 0:03:30]} Qc7 {[%emt 0:00:30]} 8. h3 {[%emt 0:03:30]} Nf6 {[%emt 0:00:30]} 9. Re1 {[%emt 0:18:30]} b4 {[%emt 0:11:30]} 10. Nb1 {[%emt 0:12:30]} Bc5 {[%emt 0:09:30]} 11. Nb3 {[%emt 0:01:30]} Be7 {[%emt 0:08:30]} 12. e5 {[%emt 0:09:30]} Nd5 {[%emt 0:00:00]} 13. Qg4 {[%emt 0:00:30]} (13. c3 $14) 13... g6 {[%emt 0:10:00]} 14. N1d2 {[%emt 0:06:30]} f5 $14 {[%emt 0:10:30]} 15. Qg3 {[%emt 0:05:30]} g5 {[%emt 0:04:30]} 16. Nf3 {[%emt 0:06:30]} h6 {[%emt 0:01:30]} 17. h4 {[%emt 0:03:43]} g4 {[%emt 0:04:30]} 18. Nfd4 {[%emt 0:00:07]} h5 {[%emt 0:03:30]} 19. Bxf5 {[%emt 0:09:57]} exf5 {[%emt 0:00:30]} 20. Nxf5 {[%emt 0:00:05]} Nc6 {[%emt 0:01:30]} 21. Nd6+ {[%emt 0:00:53]} Kf8 {[%emt 0:01:30]} 22. Qd3 {[%emt 0:03:30]} Nxe5 {[%emt 0:02:30]} 23. Qf5+ {[%emt 0:00:25]} Nf6 {[%emt 0:05:30]} 24. Nxb7 {[%emt 0:00:48]} Nf7 {[%emt 0:05:38]} 25. N7c5 {[%emt 0:01:51]} a5 {[%emt 0:06:55]} 26. Bf4 {[%emt 0:02:25]} Qc6 {[%emt 0:00:04]} 27. Rad1 {[%emt 0:01:31]} Rd8 {[%emt 0:02:39]} 28. Nd3 {[%emt 0:00:51]} d6 {[%emt 0:04:54]} 29. Nd4 {[%emt 0:00:22]} Qc8 {[%emt 0:00:50]} 30. Ne6+ {[%emt 0:00:40]} Ke8 {[%emt 0:00:01]} 31. Qb5+ {[%emt 0:00:22]} Qd7 {[%emt 0:01:50]} 32. Qxa5 {[%emt 0:00:41]} Rc8 {[%emt 0:00:30]} 33. Qxb4 {[%emt 0:00:41]} d5 {[%emt 0:00:41]} 34. Qb3 {[%emt 0:00:31]} Ne4 {[%emt 0:00:21]} 35. Nd4 {[%emt 0:00:27]} Bxh4 {[%emt 0:01:01]} 36. g3 {[%emt 0:00:28]} Be7 {[%emt 0:00:23]} 37. Nb5 {[%emt 0:00:23]} h4 {[%emt 0:01:16]} 38. Nc3 {[%emt 0:00:33]} hxg3 {[%emt 0:01:23]} 39. fxg3 {[%emt 0:00:11]} Nfg5 {[%emt 0:00:18]} 40. Bxg5 {[%emt 0:01:01]} Nxg5 {[%emt 0:00:00]} 41. Kg2 {[%emt 0:05:04]} Qf5 {[%emt 0:09:16]} 42. Nf4 {[%emt 0:11:52]} Nf3 {[%emt 0:04:30]} 43. Rh1 {[%emt 0:01:01]} Kf7 {[%emt 0:01:38]} 44. Rxd5 {[%emt 0:02:43]} 1-0

[Event "World Junior U20 Girls 2018"]
[Site "Gebze"]
[Date "2018.09.13"]
[Round "9"]
[White "Kyrkjebo, Hanna B"]
[Black "Yorgun, Yaren Naz"]
[Result "1/2-1/2"]
[ECO "C01"]
[WhiteElo "1947"]
[BlackElo "1751"]
[Annotator "NA"]
[PlyCount "96"]
[EventDate "2018.09.05"]
[EventType "swiss"]
[EventCountry "TUR"]
[SourceTitle "playchess.com"]
[Source "ChessBase"]
[SourceQuality "1"]
[TimeControl "40/5400+30:1800+30"]

1. e4 {[%emt 0:00:30]} e6 {[%emt 0:00:30]} 2. d4 {[%emt 0:00:00]} d5 {[%emt 0:03:30]} 3. Bd3 {[%emt 0:00:00]} Nf6 {[%emt 0:00:30]} 4. e5 {[%emt 0:00:30]} Nfd7 {[%emt 0:00:30]} 5. Ne2 {[%emt 0:00:30]} c5 {[%emt 0:00:00] C01: French: Exchange Variation} 6. c3 {[%emt 0:01:30]} Nc6 {[%emt 0:00:00]} (6... b6 7. Nf4 Qc7 8. Qh5 cxd4 9. Nxe6 Qxe5+ 10. Qxe5 Nxe5 11. Bb5+ Bd7 12. Nxd4 Nbc6 13. Nxc6 Bxc6 {1-0 (68) Vavulin,M (2453)-Bortnyk,O (2533) Moscow 2015}) 7. a3 {[%emt 0:00:00]} Qb6 {[%emt 0:06:30]} 8. b4 $146 {[%emt 0:03:00]} ({Predecessor:} 8. Bc2 Be7 9. O-O Nf8 10. dxc5 Qc7 11. f4 Bxc5+ 12. Kh1 Ng6 13. Nd2 {0-1 (30) Ulyanovskyy,V (2255)-Silverio,L (2140) Portugal 2003}) 8... cxd4 {[%emt 0:04:30]} 9. cxd4 {[%emt 0:01:30]} a6 {[%emt 0:04:30]} 10. Be3 {[%emt 0:07:30]} Be7 {[%emt 0:02:30]} 11. O-O {[%emt 0:02:30]} O-O {[%emt 0:06:30]} 12. Nbc3 {[%emt 0:05:30]} Rd8 {[%emt 0:02:30]} 13. Qc2 {[%emt 0:05:30]} Nf8 {[%emt 0:00:30]} 14. Rac1 {[%emt 0:05:30]} Bd7 {[%emt 0:09:30]} 15. Qb3 {[%emt 0:07:30]} Na7 {[%emt 0:11:30]} 16. Rc2 {[%emt 0:12:30]} Nc8 {[%emt 0:19:30]} 17. Rfc1 {[%emt 0:04:30]} Qa7 {[%emt 0:01:30]} 18. a4 {[%emt 0:02:30]} Qb8 {[%emt 0:07:48]} 19. Ra2 {[%emt 0:13:30]} a5 {[%emt 0:04:13]} 20. bxa5 {[%emt 0:03:30]} Rxa5 {[%emt 0:00:13]} 21. Rb1 {[%emt 0:02:30]} Bc6 $16 {[%emt 0:03:50]} 22. Bd2 {[%emt 0:00:59]} Ra7 {[%emt 0:01:47]} 23. Nb5 {[%emt 0:04:33]} Ra8 {[%emt 0:02:33]} 24. a5 {[%emt 0:04:10]} Nd7 {[%emt 0:02:00]} 25. Qc2 {[%emt 0:01:43]} g6 {[%emt 0:00:55]} 26. a6 {[%emt 0:02:12]} Rxa6 {[%emt 0:01:47]} 27. Rxa6 {[%emt 0:01:07]} bxa6 {[%emt 0:00:02]} 28. Ba5 {[%emt 0:06:59]} Bxb5 {[%emt 0:00:46]} 29. Bxb5 {[%emt 0:01:20]} axb5 {[%emt 0:00:14]} 30. Bxd8 {[%emt 0:00:47]} Bxd8 {[%emt 0:00:01]} 31. Qc6 {[%emt 0:00:19]} Ncb6 {[%emt 0:03:55]} 32. Qxb5 {[%emt 0:00:36]} Kg7 {[%emt 0:00:28]} 33. h3 {[%emt 0:00:30]} Qa7 {[%emt 0:00:38]} 34. Nc3 {[%emt 0:00:33]} Qc7 {[%emt 0:00:29]} 35. Qb4 {[%emt 0:00:30]} Qc4 {[%emt 0:00:27]} 36. Nb5 {[%emt 0:00:28]} Qxb4 {[%emt 0:00:36]} 37. Rxb4 {[%emt 0:00:02]} Be7 {[%emt 0:00:14]} 38. Rb1 {[%emt 0:00:20]} f6 {[%emt 0:00:37]} 39. exf6+ {[%emt 0:00:37]} Kxf6 {[%emt 0:00:36]} 40. Re1 {[%emt 0:00:00]} e5 {[%emt 0:00:00]} 41. dxe5+ {[%emt 0:07:15]} Nxe5 {[%emt 0:01:51]} 42. Nd4 {[%emt 0:01:30]} Bc5 {[%emt 0:02:30]} 43. Nb3 {[%emt 0:08:06]} Bb4 {[%emt 0:11:52]} 44. Rc1 {[%emt 0:03:01]} Nec4 {[%emt 0:03:16]} 45. Nd4 {[%emt 0:02:34]} Bc5 {[%emt 0:00:49]} 46. Nb3 {[%emt 0:01:04]} Bd6 {[%emt 0:05:39]} 47. Rd1 {[%emt 0:01:45]} Be5 {[%emt 0:00:30]} 48. g3 {[%emt 0:01:50]} g5 {[%emt 0:00:56]} 1/2-1/2

[Event "World Junior U20 Girls 2018"]
[Site "Gebze"]
[Date "2018.09.13"]
[Round "9"]
[White "Kocyigit, Buse Naz"]
[Black "Catal, Uktenur"]
[Result "1-0"]
[ECO "D32"]
[WhiteElo "1944"]
[BlackElo "1809"]
[Annotator "NA"]
[PlyCount "61"]
[EventDate "2018.09.05"]
[EventType "swiss"]
[EventCountry "TUR"]
[SourceTitle "playchess.com"]
[Source "ChessBase"]
[SourceQuality "1"]
[TimeControl "40/5400+30:1800+30"]

1. d4 {[%emt 0:00:30]} e6 {[%emt 0:00:30]} 2. Nf3 {[%emt 0:00:30]} d5 {[%emt 0:00:00]} 3. c4 {[%emt 0:00:30]} c5 {[%emt 0:00:00]} 4. cxd5 {[%emt 0:01:30]} exd5 {[%emt 0:00:00]} 5. Nc3 {[%emt 0:00:30]} Nc6 {[%emt 0:00:00]} 6. e3 {[%emt 0:01:30]} Nf6 {[%emt 0:00:30]} 7. Be2 {[%emt 0:01:30]} Be7 {[%emt 0:00:30]} 8. O-O {[%emt 0:01:30]} O-O {[%emt 0:00:00]} 9. b3 {[%emt 0:01:30]} Ne4 {[%emt 0:02:00]} 10. Bb2 {[%emt 0:09:30]} Bf6 {[%emt 0:00:00]} 11. Na4 {[%emt 0:05:30]} b6 {[%emt 0:02:00]} 12. Rc1 $11 {[%emt 0:04:30]} Bb7 {[%emt 0:27:30]} 13. Ba3 {[%emt 0:28:30]} Nb4 {[%emt 0:35:30]} 14. dxc5 {[%emt 0:01:30]} Nxa2 {[%emt 0:01:30]} 15. Rc2 {[%emt 0:00:30]} Nac3 {[%emt 0:00:30]} 16. Nxc3 {[%emt 0:00:30]} Nxc3 {[%emt 0:00:00]} 17. Rxc3 {[%emt 0:00:00]} Bxc3 {[%emt 0:00:00]} 18. c6 {[%emt 0:00:00]} Bxc6 {[%emt 0:05:30]} 19. Qc2 {[%emt 0:01:30]} d4 {[%emt 0:01:30]} 20. Bxf8 {[%emt 0:01:30]} Kxf8 {[%emt 0:06:16]} 21. exd4 {[%emt 0:05:30]} Bxf3 {[%emt 0:01:22]} 22. Bxf3 {[%emt 0:00:00]} Rc8 {[%emt 0:00:00]} 23. Qxh7 {[%emt 0:00:00]} Rc7 {[%emt 0:13:27]} 24. Qh8+ {[%emt 0:01:30]} Ke7 {[%emt 0:00:23]} 25. Qxg7 {[%emt 0:00:30]} Qxd4 {[%emt 0:00:31]} 26. Re1+ {[%emt 0:02:30]} Kd6 {[%emt 0:00:49]} 27. Qg3+ {[%emt 0:01:30]} Kd7 {[%emt 0:00:34]} 28. Rd1 {[%emt 0:01:30]} Bd2 {[%emt 0:00:36]} 29. Qg4+ {[%emt 0:00:30]} Qxg4 {[%emt 0:00:58]} 30. Bxg4+ {[%emt 0:00:30]} f5 {[%emt 0:00:49]} 31. Rxd2+ {[%emt 0:00:30]} 1-0

[Event "World Junior U20 Girls 2018"]
[Site "Gebze"]
[Date "2018.09.13"]
[Round "9"]
[White "Kyrkjebo, Marte B"]
[Black "Koo, Wei Xin Rosamund"]
[Result "1/2-1/2"]
[ECO "B31"]
[WhiteElo "1935"]
[BlackElo "1918"]
[Annotator "NA"]
[PlyCount "62"]
[EventDate "2018.09.05"]
[EventType "swiss"]
[EventCountry "TUR"]
[SourceTitle "playchess.com"]
[Source "ChessBase"]
[SourceQuality "1"]
[TimeControl "40/5400+30:1800+30"]

1. e4 {[%emt 0:00:30]} c5 {[%emt 0:00:30]} 2. Nf3 {[%emt 0:00:30]} Nc6 {[%emt 0:00:30]} 3. Bb5 {[%emt 0:00:00]} g6 {[%emt 0:00:00]} 4. Bxc6 {[%emt 0:00:00]} bxc6 {[%emt 0:00:00]} 5. O-O {[%emt 0:00:30]} Bg7 {[%emt 0:00:30]} 6. Re1 {[%emt 0:01:30]} Nf6 {[%emt 0:00:30]} 7. e5 {[%emt 0:07:30]} Nd5 {[%emt 0:00:30]} 8. c4 {[%emt 0:01:30]} Nc7 {[%emt 0:03:30]} 9. d4 {[%emt 0:01:30]} cxd4 {[%emt 0:01:30]} 10. Qxd4 {[%emt 0:01:30]} Ne6 {[%emt 0:14:30]} 11. Qh4 {[%emt 0:01:30]} O-O {[%emt 0:02:30]} 12. Bh6 {[%emt 0:06:30] LiveBook: 11 Games B31: Sicilian: 2...Nc6 3 Bb5 g6} d6 {[%emt 0:17:30]} (12... f6 13. Bxg7 Kxg7 14. Nc3 h6 15. Nd4 Ng5 16. f4 Nf7 17. Rad1 Qb6 18. Kh1 fxe5 19. fxe5 Ng5 {1-0 (58) Quesada Perez,Y (2632)-Duran Vega,S (2377) Merida 2016}) 13. Bxg7 {[%emt 0:12:30]} Kxg7 {[%emt 0:00:00]} 14. Nc3 {[%emt 0:01:30]} dxe5 {[%emt 0:06:00]} 15. Nxe5 {[%emt 0:05:30]} Qc7 {[%emt 0:00:30]} 16. Qe4 $146 {[%emt 0:03:30]} ({Predecessor:} 16. Re3 f6 17. Nd3 Rf7 18. Rae1 Nf8 19. Ne4 Bf5 20. Nec5 Rd8 21. Qg3 {0-1 (30) Eminov,O (2274)-Erden,K (2235) Konya 2017}) 16... Bb7 {[%emt 0:02:30]} 17. Nxf7 {[%emt 0:08:30]} Rxf7 {[%emt 0:13:30]} 18. Qxe6 {[%emt 0:01:30]} Qb6 {[%emt 0:02:30]} 19. Ne4 {[%emt 0:09:30]} Raf8 {[%emt 0:03:30]} 20. c5 {[%emt 0:09:30]} Qc7 {[%emt 0:02:30]} 21. Ng5 {[%emt 0:05:30]} Bc8 {[%emt 0:00:30]} 22. Qe4 {[%emt 0:06:51]} Rf4 {[%emt 0:11:52]} 23. Ne6+ {[%emt 0:03:16]} Bxe6 {[%emt 0:00:39]} 24. Qxe6 {[%emt 0:00:03]} Rxf2 {[%emt 0:02:14]} 25. Qxe7+ {[%emt 0:05:30]} Qxe7 {[%emt 0:00:02]} 26. Rxe7+ {[%emt 0:00:00]} Kh6 $11 {[%emt 0:00:33]} 27. Rae1 {[%emt 0:03:46]} Rxb2 {[%emt 0:00:42]} 28. R7e2 {[%emt 0:00:17]} Rfb8 {[%emt 0:00:58]} 29. Rxb2 {[%emt 0:02:56]} Rxb2 {[%emt 0:00:04]} 30. Re6 {[%emt 0:00:20]} Rxa2 {[%emt 0:00:07]} 31. Rxc6 {[%emt 0:00:00]} a5 {[%emt 0:00:31]} 1/2-1/2

[Event "World Junior U20 Girls 2018"]
[Site "Gebze"]
[Date "2018.09.13"]
[Round "9"]
[White "Doroy Allaney Jia G"]
[Black "Ozbay, Ece"]
[Result "0-1"]
[ECO "A11"]
[WhiteElo "1914"]
[BlackElo "2114"]
[Annotator "NA"]
[PlyCount "86"]
[EventDate "2018.09.05"]
[EventType "swiss"]
[EventCountry "TUR"]
[SourceTitle "playchess.com"]
[Source "ChessBase"]
[SourceQuality "1"]
[TimeControl "40/5400+30:1800+30"]

1. c4 {[%emt 0:00:30]} c6 {[%emt 0:00:30]} 2. g3 {[%emt 0:00:30]} d5 {[%emt 0:00:30]} 3. Bg2 {[%emt 0:00:00]} Nf6 {[%emt 0:00:00]} 4. Nf3 {[%emt 0:01:00]} Bg4 {[%emt 0:00:00]} 5. O-O {[%emt 0:02:30]} e6 {[%emt 0:00:30]} 6. Qc2 {[%emt 0:04:30]} Bd6 {[%emt 0:02:30]} 7. d3 {[%emt 0:00:30]} Nbd7 {[%emt 0:01:30]} 8. Nbd2 {[%emt 0:04:30]} a5 {[%emt 0:05:30]} 9. b3 {[%emt 0:03:30]} Qc7 {[%emt 0:04:30]} 10. Bb2 {[%emt 0:01:30]} h5 {[%emt 0:07:30]} 11. cxd5 {[%emt 0:04:30]} exd5 {[%emt 0:01:30]} 12. e4 {[%emt 0:00:30]} O-O-O {[%emt 0:03:30]} 13. Ng5 {[%emt 0:28:30]} h4 $18 {[%emt 0:21:30]} (13... dxe4 $16 {was worth a try.} 14. Ndxe4 (14. Nxf7 exd3 15. Qxd3 Ne5 $16) 14... Nxe4 15. dxe4 (15. Nxe4 Bf8 $14) 15... Ne5) 14. Nxf7 {[%emt 0:20:30]} hxg3 {[%emt 0:00:30]} 15. Nxd6+ {[%emt 0:00:30]} Qxd6 {[%emt 0:00:00]} 16. hxg3 {[%emt 0:00:30]} dxe4 {[%emt 0:03:00]} 17. dxe4 {[%emt 0:01:30]} Ne5 {[%emt 0:04:30]} 18. Qc3 {[%emt 0:06:23]} Qxd2 {[%emt 0:17:30]} 19. Qxe5 {[%emt 0:02:21]} Qh6 {[%emt 0:01:30]} 20. Rfe1 {[%emt 0:07:46]} Qh2+ {[%emt 0:11:40]} 21. Kf1 {[%emt 0:00:08]} Bh3 {[%emt 0:00:13]} 22. Bxh3+ {[%emt 0:02:37]} Qxh3+ {[%emt 0:00:02]} 23. Ke2 {[%emt 0:00:00]} Rhe8 {[%emt 0:07:31]} 24. Qxa5 {[%emt 0:05:36]} Rxe4+ {[%emt 0:01:10]} 25. Kf3 {[%emt 0:00:06]} Rd3+ {[%emt 0:02:37]} 26. Re3 {[%emt 0:00:30]} Rexe3+ {[%emt 0:00:00]} 27. fxe3 {[%emt 0:00:05]} Qg4+ {[%emt 0:00:00]} 28. Kg2 {[%emt 0:01:01]} Qe2+ {[%emt 0:00:44]} 29. Kh1 {[%emt 0:01:41]} Rd5 {[%emt 0:03:32]} 30. Qa8+ {[%emt 0:00:18]} Kc7 {[%emt 0:00:06]} 31. Bxf6 {[%emt 0:00:14]} gxf6 {[%emt 0:00:00]} 32. Qe8 {[%emt 0:01:02]} Rh5+ {[%emt 0:01:03]} 33. Kg1 {[%emt 0:00:07]} Qh2+ {[%emt 0:00:17]} 34. Kf1 {[%emt 0:00:30]} Rf5+ {[%emt 0:00:30]} 35. Ke1 {[%emt 0:00:00]} Qf2+ {[%emt 0:00:00]} 36. Kd1 {[%emt 0:00:00]} Rd5+ {[%emt 0:00:45]} 37. Kc1 {[%emt 0:00:00]} Qe1+ {[%emt 0:01:07]} 38. Kb2 {[%emt 0:00:57]} Rd2+ {[%emt 0:00:36]} 39. Kc3 {[%emt 0:00:43]} Rd1+ {[%emt 0:00:13]} 40. Kb2 {[%emt 0:00:00]} Qd2+ {[%emt 0:00:00]} 41. Ka3 {[%emt 0:01:55]} Qa5+ {[%emt 0:00:54]} 42. Kb2 {[%emt 0:00:30]} Rd2+ {[%emt 0:00:30]} 43. Kb1 {[%emt 0:00:30]} Qf5+ {[%emt 0:00:30]} 0-1

[Event "World Junior U20 Girls 2018"]
[Site "Gebze"]
[Date "2018.09.13"]
[Round "9"]
[White "Koljevic, Nikolina"]
[Black "Ayan, Bengu Sena"]
[Result "1/2-1/2"]
[ECO "C14"]
[WhiteElo "1898"]
[BlackElo "1976"]
[Annotator "NA"]
[PlyCount "83"]
[EventDate "2018.09.05"]
[EventType "swiss"]
[EventCountry "TUR"]
[SourceTitle "playchess.com"]
[Source "ChessBase"]
[SourceQuality "1"]
[TimeControl "40/5400+30:1800+30"]

1. e4 {[%emt 0:00:30]} e6 {[%emt 0:00:30]} 2. d4 {[%emt 0:00:00]} d5 {[%emt 0:00:00]} 3. Nc3 {[%emt 0:00:00]} Nf6 {[%emt 0:00:00]} 4. Bg5 {[%emt 0:00:00]} Be7 {[%emt 0:00:30]} 5. e5 {[%emt 0:00:00]} Nfd7 {[%emt 0:00:30]} 6. Bxe7 {[%emt 0:00:00]} Qxe7 $11 {[%emt 0:00:00] LiveBook: 1609 Games} 7. f4 {[%emt 0:00:00]} a6 {[%emt 0:00:00]} 8. Nf3 {[%emt 0:00:30]} c5 {[%emt 0:00:30]} 9. Qd2 {[%emt 0:00:30]} Nc6 {[%emt 0:00:00]} 10. dxc5 {[%emt 0:00:00]} Nxc5 {[%emt 0:03:00]} 11. Bd3 {[%emt 0:00:00]} Bd7 {[%emt 0:07:30]} 12. O-O {[%emt 0:00:30]} h6 {[%emt 0:15:30]} 13. Kh1 {[%emt 0:00:30]} g6 {[%emt 0:10:30]} 14. Rae1 {[%emt 0:05:30]} b5 {[%emt 0:09:30]} 15. a3 {[%emt 0:02:30]} Bc8 {[%emt 0:03:30]} 16. Ne2 {[%emt 0:02:30]} Bb7 {[%emt 0:01:30]} 17. Ned4 {[%emt 0:00:30]} Qc7 {[%emt 0:09:30]} 18. Qe3 {[%emt 0:06:30]} Nxd4 {[%emt 0:02:30]} 19. Nxd4 {[%emt 0:00:30]} Qb6 {[%emt 0:08:30]} 20. Rf3 {[%emt 0:12:30]} O-O-O {[%emt 0:06:31]} 21. Nb3 {[%emt 0:07:30]} d4 {[%emt 0:02:19]} 22. Qf2 {[%emt 0:01:30]} Bxf3 {[%emt 0:01:19]} 23. Qxf3 {[%emt 0:01:30]} Nxd3 {[%emt 0:04:05]} 24. Qxd3 {[%emt 0:00:30]} Rd7 {[%emt 0:00:10]} 25. Nd2 {[%emt 0:00:30]} Rhd8 {[%emt 0:01:07]} 26. Ne4 {[%emt 0:00:30]} Kb8 {[%emt 0:00:23]} 27. b4 {[%emt 0:03:30]} Qc6 {[%emt 0:03:33]} 28. Nc5 {[%emt 0:01:30]} Rd5 {[%emt 0:00:31]} 29. a4 {[%emt 0:01:30]} Rxc5 {[%emt 0:06:49]} 30. bxc5 {[%emt 0:00:30]} Qxc5 {[%emt 0:00:00]} 31. axb5 {[%emt 0:01:30]} axb5 {[%emt 0:00:00]} 32. Rb1 {[%emt 0:00:30]} Rd5 {[%emt 0:00:10]} 33. h3 {[%emt 0:01:30]} Kc7 {[%emt 0:01:41]} 34. Qb3 {[%emt 0:00:30]} Kd7 {[%emt 0:02:12]} 35. Ra1 {[%emt 0:02:30]} Ke7 {[%emt 0:00:27]} 36. Ra8 {[%emt 0:00:30]} Rd8 {[%emt 0:00:42]} 37. Qa2 {[%emt 0:04:30]} Rxa8 {[%emt 0:00:51]} 38. Qxa8 {[%emt 0:00:00]} Qb6 {[%emt 0:01:31]} 39. Qa3+ {[%emt 0:00:00]} b4 {[%emt 0:00:00]} 40. Qa8 {[%emt 0:00:00]} Qc5 {[%emt 0:00:00]} 41. Qb8 {[%emt 0:02:00]} h5 {[%emt 0:08:39]} 42. Kh2 {[%emt 0:05:30]} 1/2-1/2